[Event "Opera Euro Rapid Prelims 2021"]
[Site "Online"]
[Date "2021.02.03"]
[Round "14.5"]
[White "Bluebaum, Matthias"]
[Black "Nakamura, Hikaru"]
[Result "0-1"]
[ECO "D05"]
[WhiteElo "2670"]
[BlackElo "2736"]
[Annotator "RC"]
[PlyCount "172"]
[EventDate "2021.02.02"]
[EventType "tourn"]
[EventCountry "NET"]
[Tiebreak "Koya+Number of black wins+Number of wins"]
[SourceTitle "playchess.com"]
[Source "ChessBase"]
[SourceQuality "1"]
[TimeControl "900+10"]

1. d4 {[%emt 0:00:00]} Nf6 {[%emt 0:00:00]} 2. Nf3 {[%emt 0:00:00]} d5 {
[%emt 0:00:00]} 3. e3 {[%emt 0:00:00]} c5 {[%emt 0:00:00]} 4. Nbd2 {[%emt 0:00:
00]} Nc6 {[%emt 0:00:41]} 5. c3 {[%emt 0:00:52]} cxd4 {[%emt 0:00:36]} 6. exd4
{[%emt 0:00:00]} Bf5 {[%emt 0:00:01]} 7. Nh4 {[%emt 0:00:18]} Bg4 {[%emt 0:00:
41]} 8. Ndf3 {[%emt 0:00:38]} e6 {[%emt 0:00:20]} 9. h3 {[%emt 0:00:03]} Bh5 {
[%emt 0:00:02]} 10. Bd3 {[%emt 0:00:11]} Bd6 {[%emt 0:00:14]} 11. Qe2 {[%emt 0:
00:21]} Bg6 {[%emt 0:00:15]} 12. Nxg6 {[%emt 0:00:22]} hxg6 {[%emt 0:00:00]}
13. Bg5 {[%emt 0:00:20]} Qc7 {[%emt 0:00:07]} 14. g3 {[%emt 0:00:19]} O-O-O {
[%emt 0:00:05]} 15. O-O-O {[%emt 0:00:27]} Kb8 {[%emt 0:00:11]} 16. Kb1 {
[%emt 0:00:02]} Rc8 {[%emt 0:00:05]} 17. h4 {[%emt 0:00:23]} Na5 {[%emt 0:01:
17]} 18. Ne5 {[%emt 0:01:24]} Ka8 {[%emt 0:00:54]} 19. Bf4 {[%emt 0:00:30]}
Rhd8 {[%emt 0:00:12]} 20. Rc1 {[%emt 0:00:42]} Nc6 {[%emt 0:00:52]} 21. Rhe1 {
[%emt 0:00:24]} Bxe5 {[%emt 0:00:32]} 22. dxe5 {[%emt 0:00:51]} Nd7 {[%emt 0:
00:04]} 23. h5 {[%emt 0:00:01]} gxh5 {[%emt 0:00:31]} 24. Qxh5 {[%emt 0:00:04]}
g6 {[%emt 0:00:01]} 25. Qe2 {[%emt 0:01:07]} Rh8 {[%emt 0:02:07]} 26. c4 {
[%emt 0:03:09]} d4 {[%emt 0:01:31]} 27. c5 {[%emt 0:01:09]} Nb4 {[%emt 0:00:03]
} 28. a3 {[%emt 0:00:52]} Nd5 {[%emt 0:01:32]} 29. Rc4 {[%emt 0:00:34]} Nb8 {
[%emt 0:00:56]} 30. Rxd4 {[%emt 0:00:57]} Qxc5 {[%emt 0:00:10]} 31. Rc4 {
[%emt 0:00:12]} Qb6 {[%emt 0:00:20]} 32. Bd2 {[%emt 0:00:42]} Nc6 {[%emt 0:00:
07]} 33. Rec1 {[%emt 0:00:24]} Rh2 {[%emt 0:00:48]} 34. Be1 {[%emt 0:00:03]}
Rd8 {[%emt 0:00:14]} 35. Be4 {[%emt 0:00:54]} a6 {[%emt 0:00:21]} 36. Rd1 {
[%emt 0:00:55]} Nxe5 {[%emt 0:01:26]} 37. Rcc1 {[%emt 0:00:06]} Nc6 {[%emt 0:
00:07]} 38. Qf3 {[%emt 0:00:23]} Ne5 {[%emt 0:00:17]} 39. Qe2 {[%emt 0:00:05]}
f6 {[%emt 0:00:21]} 40. Ka1 {[%emt 0:00:28]} g5 {[%emt 0:00:09]} 41. Qd2 {
[%emt 0:00:18]} Nc6 {[%emt 0:00:14]} 42. Qd3 {[%emt 0:01:15]} Rhh8 {[%emt 0:00:
40]} 43. Kb1 {[%emt 0:00:08]} Ne5 {[%emt 0:01:14]} 44. Qe2 {[%emt 0:00:01]} g4
{[%emt 0:00:01]} 45. Bg2 {[%emt 0:00:06]} Rhe8 {[%emt 0:00:17]} 46. Qe4 {
[%emt 0:00:07]} Qb3 {[%emt 0:00:07]} 47. Qc2 {[%emt 0:00:25]} Qxc2+ {[%emt 0:
00:06]} 48. Kxc2 {[%emt 0:00:00]} f5 {[%emt 0:00:26]} 49. Kb1 {[%emt 0:00:02]}
Nc6 {[%emt 0:00:08]} 50. Bd2 {[%emt 0:00:04]} Rg8 {[%emt 0:00:10]} 51. Rh1 {
[%emt 0:00:05]} Nd4 {[%emt 0:00:12]} 52. Ba5 {[%emt 0:00:12]} Rd7 {[%emt 0:00:
03]} 53. Ka2 {[%emt 0:00:18]} Ka7 {[%emt 0:00:17]} 54. Rh6 {[%emt 0:00:07]} Re8
{[%emt 0:00:26]} 55. Rd1 {[%emt 0:00:29]} Nc6 {[%emt 0:00:13]} 56. Bd2 {
[%emt 0:00:01]} Nb6 {[%emt 0:00:19]} 57. Bxc6 {[%emt 0:00:23]} bxc6 {[%emt 0:
00:00]} 58. Kb1 {[%emt 0:00:01]} Red8 {[%emt 0:00:36]} 59. Kc1 {[%emt 0:00:01]}
Rd6 {[%emt 0:00:01]} 60. b3 {[%emt 0:00:09]} R8d7 {[%emt 0:00:12]} 61. a4 {
[%emt 0:00:13]} Kb7 {[%emt 0:00:01]} 62. Kc2 {[%emt 0:00:04]} c5 {[%emt 0:00:
06]} 63. Rhh1 {[%emt 0:00:19]} Kc6 {[%emt 0:00:12]} 64. Rhe1 {[%emt 0:00:13]}
Nd5 {[%emt 0:00:12]} 65. Re2 {[%emt 0:00:08]} Nb4+ {[%emt 0:00:18]} 66. Kc1 {
[%emt 0:00:01]} e5 {[%emt 0:00:36]} 67. Rh1 {[%emt 0:00:01]} Nd3+ {[%emt 0:00:
01]} 68. Kc2 {[%emt 0:00:01]} f4 {[%emt 0:00:02]} 69. gxf4 {[%emt 0:00:24]}
exf4 {[%emt 0:00:00]} 70. Bc3 {[%emt 0:00:08]} Nb4+ {[%emt 0:00:36]} 71. Bxb4 {
[%emt 0:00:09]} cxb4 {[%emt 0:00:00]} 72. Rg1 {[%emt 0:00:28]} f3 {[%emt 0:00:
07]} 73. Re4 {[%emt 0:00:02]} Rd2+ {[%emt 0:00:28]} 74. Kc1 {[%emt 0:00:02]}
R7d4 {[%emt 0:00:16]} 75. Rexg4 {[%emt 0:00:19]} Rxg4 {[%emt 0:00:01]} 76. Rxg4
{[%emt 0:00:00]} Rxf2 {[%emt 0:00:00]} 77. Rxb4 {[%emt 0:00:17]} Ra2 {[%emt 0:
00:08]} 78. Rf4 {[%emt 0:00:09]} f2 {[%emt 0:00:01]} 79. Kd1 {[%emt 0:00:03]}
a5 {[%emt 0:00:02]} 80. Rf5 {[%emt 0:00:17]} Kd6 {[%emt 0:00:04]} 81. Rf3 {
[%emt 0:00:06]} Kd5 {[%emt 0:00:09]} 82. Rf4 {[%emt 0:00:11]} Ke5 {[%emt 0:00:
02]} 83. Rf8 {[%emt 0:00:09]} Kd4 {[%emt 0:00:04]} 84. Rf3 {[%emt 0:00:04]} Ke4
{[%emt 0:00:03]} 85. Rf8 {[%emt 0:00:02]} Ke3 {[%emt 0:00:02]} 86. Re8+ {
[%emt 0:00:36]} Kd3 {[%emt 0:00:02]} 0-1

[Event "Opera Euro Rapid Prelims 2021"]
[Site "Online"]
[Date "2021.02.03"]
[Round "15.1"]
[White "Grischuk, Alexander"]
[Black "Dubov, Daniil"]
[Result "1/2-1/2"]
[ECO "A67"]
[WhiteElo "2777"]
[BlackElo "2710"]
[Annotator "RC"]
[PlyCount "174"]
[EventDate "2021.02.02"]
[EventType "tourn"]
[EventCountry "NET"]
[Tiebreak "Koya+Number of black wins+Number of wins"]
[SourceTitle "playchess.com"]
[Source "ChessBase"]
[SourceQuality "1"]
[TimeControl "900+10"]

1. d4 {[%emt 0:00:00]} Nf6 {[%emt 0:00:00]} 2. c4 {[%emt 0:00:00]} c5 {[%emt 0:
00:02]} 3. d5 {[%emt 0:00:00]} e6 {[%emt 0:00:01]} 4. Nc3 {[%emt 0:00:00]} exd5
{[%emt 0:00:01]} 5. cxd5 {[%emt 0:00:00]} d6 {[%emt 0:00:00]} 6. e4 {[%emt 0:
00:03]} g6 {[%emt 0:00:01]} 7. f4 {[%emt 0:00:58]} Bg7 {[%emt 0:00:04]} 8. Bb5+
{[%emt 0:00:01]} Nfd7 {[%emt 0:00:02]} 9. a4 {[%emt 0:00:01]} O-O {[%emt 0:00:
04]} 10. Nf3 {[%emt 0:00:05]} c4 {[%emt 0:01:41]} 11. O-O {[%emt 0:03:05]} Nc5
{[%emt 0:00:12]} 12. Bxc4 {[%emt 0:01:31]} Bg4 {[%emt 0:00:04]} 13. h3 {
[%emt 0:01:47]} Bxf3 {[%emt 0:00:03]} 14. Qxf3 {[%emt 0:00:00]} Nbd7 {[%emt 0:
00:04]} 15. Be3 {[%emt 0:00:26]} Rc8 {[%emt 0:00:43]} 16. Rac1 {[%emt 0:01:38]}
Nb6 {[%emt 0:00:31]} 17. Be2 {[%emt 0:03:39]} Ncxa4 {[%emt 0:01:43]} 18. Nxa4 {
[%emt 0:00:03]} Rxc1 {[%emt 0:00:09]} 19. Bxc1 {[%emt 0:00:01]} Nxa4 {[%emt 0:
00:01]} 20. e5 {[%emt 0:00:01]} dxe5 {[%emt 0:01:08]} 21. f5 {[%emt 0:00:03]}
e4 {[%emt 0:00:17]} 22. Qxe4 {[%emt 0:00:13]} Nb6 {[%emt 0:02:31]} 23. d6 {
[%emt 0:01:16]} Nc8 {[%emt 0:01:12]} 24. d7 {[%emt 0:03:08]} Qxd7 {[%emt 0:01:
42]} 25. f6 {[%emt 0:00:03]} Re8 {[%emt 0:00:08]} 26. Qg4 {[%emt 0:00:45]} Qxg4
{[%emt 0:00:04]} 27. Bxg4 {[%emt 0:00:02]} Bf8 {[%emt 0:00:12]} 28. Bf3 {
[%emt 0:00:12]} Bc5+ {[%emt 0:00:21]} 29. Kh2 {[%emt 0:00:13]} Nd6 {[%emt 0:00:
17]} 30. g4 {[%emt 0:00:11]} Bd4 {[%emt 0:01:34]} 31. Bf4 {[%emt 0:00:18]} Ne4
{[%emt 0:01:07]} 32. g5 {[%emt 0:00:11]} h6 {[%emt 0:00:23]} 33. h4 {[%emt 0:
00:02]} hxg5 {[%emt 0:00:08]} 34. hxg5 {[%emt 0:00:00]} Bxb2 {[%emt 0:00:06]}
35. Re1 {[%emt 0:00:31]} Nxf6 {[%emt 0:01:21]} 36. Rb1 {[%emt 0:00:02]} Nh5 {
[%emt 0:00:07]} 37. Bxh5 {[%emt 0:00:07]} Be5 {[%emt 0:00:01]} 38. Bxe5 {
[%emt 0:00:04]} Rxe5 {[%emt 0:00:00]} 39. Bf3 {[%emt 0:00:21]} b6 {[%emt 0:00:
12]} 40. Rg1 {[%emt 0:00:26]} a5 {[%emt 0:00:01]} 41. Kh3 {[%emt 0:00:04]} a4 {
[%emt 0:00:13]} 42. Kg4 {[%emt 0:00:04]} a3 {[%emt 0:00:26]} 43. Ra1 {[%emt 0:
00:10]} Ra5 {[%emt 0:00:01]} 44. Bd1 {[%emt 0:00:12]} b5 {[%emt 0:00:22]} 45.
Bb3 {[%emt 0:00:04]} b4 {[%emt 0:00:01]} 46. Rf1 {[%emt 0:00:19]} Ra7 {[%emt 0:
00:10]} 47. Rf4 {[%emt 0:00:17]} Rb7 {[%emt 0:00:14]} 48. Rd4 {[%emt 0:00:05]}
Kf8 {[%emt 0:00:15]} 49. Re4 {[%emt 0:00:09]} Rb8 {[%emt 0:00:38]} 50. Rf4 {
[%emt 0:00:10]} Rb7 {[%emt 0:00:21]} 51. Re4 {[%emt 0:00:01]} Ra7 {[%emt 0:00:
03]} 52. Rxb4 {[%emt 0:00:09]} a2 {[%emt 0:00:02]} 53. Bxa2 {[%emt 0:00:04]}
Rxa2 {[%emt 0:00:01]} 54. Rb8+ {[%emt 0:00:05]} Kg7 {[%emt 0:00:14]} 55. Rc8 {
[%emt 0:00:08]} Ra4+ {[%emt 0:00:01]} 56. Kg3 {[%emt 0:00:01]} Rd4 {[%emt 0:00:
01]} 57. Rb8 {[%emt 0:00:02]} Rd1 {[%emt 0:00:02]} 58. Kg4 {[%emt 0:00:03]} Rh1
{[%emt 0:00:01]} 59. Ra8 {[%emt 0:00:02]} Rh5 {[%emt 0:00:03]} 60. Rb8 {
[%emt 0:00:04]} Rh8 {[%emt 0:00:01]} 61. Rb7 {[%emt 0:00:04]} Rd8 {[%emt 0:00:
05]} 62. Ra7 {[%emt 0:00:02]} Kf8 {[%emt 0:00:01]} 63. Rb7 {[%emt 0:00:03]}
Rd4+ {[%emt 0:00:01]} 64. Kg3 {[%emt 0:00:02]} Ke8 {[%emt 0:00:01]} 65. Ra7 {
[%emt 0:00:05]} Rd7 {[%emt 0:00:04]} 66. Ra1 {[%emt 0:00:44]} Rd3+ {[%emt 0:00:
07]} 67. Kg4 {[%emt 0:00:03]} Rd4+ {[%emt 0:00:00]} 68. Kg3 {[%emt 0:00:01]}
Rd5 {[%emt 0:00:16]} 69. Kg4 {[%emt 0:00:06]} Ke7 {[%emt 0:00:03]} 70. Ra7+ {
[%emt 0:00:38]} Ke6 {[%emt 0:00:02]} 71. Ra6+ {[%emt 0:00:02]} Rd6 {[%emt 0:00:
02]} 72. Ra4 {[%emt 0:00:21]} Ke5 {[%emt 0:00:08]} 73. Ra7 {[%emt 0:00:15]}
Rd4+ {[%emt 0:00:03]} 74. Kg3 {[%emt 0:00:03]} Ke6 {[%emt 0:00:01]} 75. Ra6+ {
[%emt 0:00:25]} Rd6 {[%emt 0:00:04]} 76. Ra7 {[%emt 0:00:13]} Rd7 {[%emt 0:00:
02]} 77. Ra6+ {[%emt 0:00:11]} Kf5 {[%emt 0:00:06]} 78. Ra5+ {[%emt 0:00:02]}
Ke4 {[%emt 0:00:01]} 79. Ra4+ {[%emt 0:00:13]} Ke5 {[%emt 0:00:03]} 80. Ra5+ {
[%emt 0:00:06]} Rd5 {[%emt 0:00:09]} 81. Ra7 {[%emt 0:00:09]} Ke6 {[%emt 0:00:
18]} 82. Ra6+ {[%emt 0:00:03]} Rd6 {[%emt 0:00:08]} 83. Ra7 {[%emt 0:00:05]}
Rb6 {[%emt 0:00:02]} 84. Kg4 {[%emt 0:00:10]} Rc6 {[%emt 0:00:02]} 85. Kf4 {
[%emt 0:00:12]} Rc4+ {[%emt 0:00:06]} 86. Kg3 {[%emt 0:00:02]} Rd4 {[%emt 0:00:
01]} 87. Ra6+ {[%emt 0:00:13]} Rd6 {[%emt 0:00:01]} 1/2-1/2

[Event "Opera Euro Rapid Prelims 2021"]
[Site "Online"]
[Date "2021.02.03"]
[Round "15.2"]
[White "Giri, Anish"]
[Black "Duda, Jan-Krzysztof"]
[Result "1/2-1/2"]
[ECO "E42"]
[WhiteElo "2764"]
[BlackElo "2743"]
[Annotator "RC"]
[PlyCount "143"]
[EventDate "2021.02.02"]
[EventType "tourn"]
[EventCountry "NET"]
[Tiebreak "Koya+Number of black wins+Number of wins"]
[SourceTitle "playchess.com"]
[Source "ChessBase"]
[SourceQuality "1"]
[TimeControl "900+10"]

1. d4 {[%emt 0:00:00]} Nf6 {[%emt 0:00:00]} 2. c4 {[%emt 0:00:00]} e6 {[%emt 0:
00:00]} 3. Nc3 {[%emt 0:00:00]} Bb4 {[%emt 0:00:00]} 4. e3 {[%emt 0:00:00]} c5
{[%emt 0:00:02]} 5. Nge2 {[%emt 0:00:04]} cxd4 {[%emt 0:00:14]} 6. exd4 {
[%emt 0:00:04]} d5 {[%emt 0:00:05]} 7. a3 {[%emt 0:00:18]} Bxc3+ {[%emt 0:00:
09]} 8. Nxc3 {[%emt 0:00:00]} dxc4 {[%emt 0:00:01]} 9. Bxc4 {[%emt 0:00:01]}
O-O {[%emt 0:00:04]} 10. O-O {[%emt 0:00:04]} Nc6 {[%emt 0:00:03]} 11. Be3 {
[%emt 0:00:26]} b6 {[%emt 0:00:56]} 12. Ba2 {[%emt 0:03:17]} Bb7 {[%emt 0:01:
45]} 13. Re1 {[%emt 0:00:01]} Ne7 {[%emt 0:00:35]} 14. Bg5 {[%emt 0:00:17]} Ng6
{[%emt 0:05:18]} 15. d5 {[%emt 0:00:53]} exd5 {[%emt 0:00:00]} 16. Qd4 {
[%emt 0:01:18]} h6 {[%emt 0:01:01]} 17. Bxf6 {[%emt 0:00:05]} Qxf6 {[%emt 0:00:
00]} 18. Qxf6 {[%emt 0:00:03]} gxf6 {[%emt 0:00:00]} 19. Rad1 {[%emt 0:01:44]}
Rfe8 {[%emt 0:01:14]} 20. Bxd5 {[%emt 0:00:02]} Bxd5 {[%emt 0:03:12]} 21. Nxd5
{[%emt 0:00:00]} Kg7 {[%emt 0:00:05]} 22. Rxe8 {[%emt 0:01:22]} Rxe8 {[%emt 0:
00:02]} 23. Ne3 {[%emt 0:00:01]} Re5 {[%emt 0:00:17]} 24. g3 {[%emt 0:00:42]}
f5 {[%emt 0:01:12]} 25. Rd4 {[%emt 0:00:02]} Nf8 {[%emt 0:00:23]} 26. Rd3 {
[%emt 0:00:57]} Rb5 {[%emt 0:00:47]} 27. b4 {[%emt 0:00:06]} a5 {[%emt 0:00:08]
} 28. Nd5 {[%emt 0:00:15]} axb4 {[%emt 0:00:05]} 29. axb4 {[%emt 0:00:04]} Nh7
{[%emt 0:00:08]} 30. Rd4 {[%emt 0:02:16]} Nf6 {[%emt 0:00:03]} 31. Ne3 {
[%emt 0:00:20]} Re5 {[%emt 0:00:14]} 32. Kf1 {[%emt 0:00:38]} Kg6 {[%emt 0:00:
39]} 33. Ke2 {[%emt 0:00:23]} Re6 {[%emt 0:00:35]} 34. f3 {[%emt 0:02:02]} b5 {
[%emt 0:00:06]} 35. Rd2 {[%emt 0:00:04]} Ra6 {[%emt 0:00:11]} 36. Rc2 {[%emt 0:
00:07]} Nd7 {[%emt 0:00:25]} 37. f4 {[%emt 0:01:16]} Nf8 {[%emt 0:00:06]} 38.
Rd2 {[%emt 0:00:40]} Ne6 {[%emt 0:00:12]} 39. Nd5 {[%emt 0:00:11]} Ra3 {
[%emt 0:00:05]} 40. Ne7+ {[%emt 0:00:49]} Kf6 {[%emt 0:00:04]} 41. Nc6 {
[%emt 0:00:07]} h5 {[%emt 0:00:41]} 42. Ne5 {[%emt 0:00:11]} Ke7 {[%emt 0:00:
13]} 43. Rd7+ {[%emt 0:00:10]} Ke8 {[%emt 0:00:01]} 44. Rxf7 {[%emt 0:00:44]}
Nd4+ {[%emt 0:00:03]} 45. Kf2 {[%emt 0:00:02]} Ra2+ {[%emt 0:00:03]} 46. Ke3 {
[%emt 0:00:01]} Nc2+ {[%emt 0:00:01]} 47. Kd3 {[%emt 0:00:03]} Ne1+ {[%emt 0:
00:45]} 48. Kc3 {[%emt 0:00:05]} Rc2+ {[%emt 0:00:03]} 49. Kb3 {[%emt 0:00:38]}
Rxh2 {[%emt 0:00:01]} 50. Rxf5 {[%emt 0:00:00]} Rh3 {[%emt 0:00:02]} 51. Kb2 {
[%emt 0:00:06]} Rxg3 {[%emt 0:00:27]} 52. Rxh5 {[%emt 0:00:01]} Re3 {[%emt 0:
00:38]} 53. Rh6 {[%emt 0:00:20]} Kd8 {[%emt 0:00:12]} 54. Rd6+ {[%emt 0:00:12]}
Kc7 {[%emt 0:00:03]} 55. Rc6+ {[%emt 0:00:20]} Kb7 {[%emt 0:00:09]} 56. Rc5 {
[%emt 0:00:01]} Re4 {[%emt 0:00:19]} 57. Rxb5+ {[%emt 0:00:05]} Ka6 {[%emt 0:
00:01]} 58. Ra5+ {[%emt 0:00:04]} Kb6 {[%emt 0:00:03]} 59. Kc3 {[%emt 0:00:26]}
Rxf4 {[%emt 0:00:03]} 60. Nc4+ {[%emt 0:00:11]} Kb7 {[%emt 0:00:01]} 61. b5 {
[%emt 0:00:11]} Rf3+ {[%emt 0:00:25]} 62. Kd4 {[%emt 0:00:07]} Nc2+ {[%emt 0:
00:03]} 63. Ke4 {[%emt 0:00:06]} Rh3 {[%emt 0:00:21]} 64. Nd6+ {[%emt 0:00:12]}
Kc7 {[%emt 0:00:05]} 65. Ra6 {[%emt 0:00:05]} Rh4+ {[%emt 0:00:08]} 66. Kf3 {
[%emt 0:00:17]} Rb4 {[%emt 0:00:12]} 67. Rc6+ {[%emt 0:00:12]} Kd7 {[%emt 0:00:
01]} 68. Rxc2 {[%emt 0:00:09]} Kxd6 {[%emt 0:00:02]} 69. Rd2+ {[%emt 0:00:02]}
Kc5 {[%emt 0:00:01]} 70. Ke3 {[%emt 0:00:01]} Kxb5 {[%emt 0:00:01]} 71. Rd4 {
[%emt 0:00:01]} Rxd4 {[%emt 0:00:01]} 72. Kxd4 {[%emt 0:00:00]} 1/2-1/2

[Event "Opera Euro Rapid Prelims 2021"]
[Site "Online"]
[Date "2021.02.03"]
[Round "15.3"]
[White "Nepomniachtchi, Ian"]
[Black "Dominguez Perez, Leinier"]
[Result "0-1"]
[ECO "E48"]
[WhiteElo "2789"]
[BlackElo "2758"]
[Annotator "RC"]
[PlyCount "126"]
[EventDate "2021.02.02"]
[EventType "tourn"]
[EventCountry "NET"]
[Tiebreak "Koya+Number of black wins+Number of wins"]
[SourceTitle "playchess.com"]
[Source "ChessBase"]
[SourceQuality "1"]
[TimeControl "900+10"]

1. d4 {[%emt 0:00:00]} Nf6 {[%emt 0:00:00]} 2. c4 {[%emt 0:00:00]} e6 {[%emt 0:
00:00]} 3. Nc3 {[%emt 0:00:00]} Bb4 {[%emt 0:00:00]} 4. e3 {[%emt 0:00:00]} O-O
{[%emt 0:00:00]} 5. Bd3 {[%emt 0:00:00]} d5 {[%emt 0:00:00]} 6. cxd5 {[%emt 0:
00:00]} exd5 {[%emt 0:00:00]} 7. Nge2 {[%emt 0:00:00]} Re8 {[%emt 0:00:01]} 8.
Bd2 {[%emt 0:00:00]} Bd6 {[%emt 0:00:42]} 9. Rc1 {[%emt 0:00:02]} c6 {[%emt 0:
01:58]} 10. O-O {[%emt 0:00:04]} Na6 {[%emt 0:01:42]} 11. f3 {[%emt 0:00:36]}
c5 {[%emt 0:00:15]} 12. Kh1 {[%emt 0:00:40]} Nc7 {[%emt 0:02:55]} 13. g4 {
[%emt 0:03:51]} b6 {[%emt 0:01:14]} 14. Ng3 {[%emt 0:00:07]} g6 {[%emt 0:02:26]
} 15. Nce2 {[%emt 0:01:16]} Bb7 {[%emt 0:00:45]} 16. g5 {[%emt 0:02:17]} Nd7 {
[%emt 0:00:03]} 17. h4 {[%emt 0:00:07]} Nf8 {[%emt 0:01:56]} 18. Kg2 {[%emt 0:
00:29]} Ba6 {[%emt 0:00:37]} 19. Bxa6 {[%emt 0:01:00]} Nxa6 {[%emt 0:00:00]}
20. dxc5 {[%emt 0:00:27]} bxc5 {[%emt 0:00:36]} 21. e4 {[%emt 0:00:07]} d4 {
[%emt 0:01:55]} 22. Qa4 {[%emt 0:00:44]} Nc7 {[%emt 0:00:45]} 23. b4 {[%emt 0:
00:37]} Nce6 {[%emt 0:00:30]} 24. bxc5 {[%emt 0:00:13]} Bxc5 {[%emt 0:00:07]}
25. Rfd1 {[%emt 0:00:12]} Rb8 {[%emt 0:00:18]} 26. Bc3 {[%emt 0:01:02]} Qb6 {
[%emt 0:00:17]} 27. Ba1 {[%emt 0:00:53]} Red8 {[%emt 0:00:01]} 28. Rd3 {
[%emt 0:00:02]} Qb7 {[%emt 0:00:26]} 29. Rcd1 {[%emt 0:00:52]} Bb6 {[%emt 0:00:
05]} 30. Qb4 {[%emt 0:00:31]} Qa6 {[%emt 0:00:11]} 31. Qa3 {[%emt 0:00:50]} Qc4
{[%emt 0:00:07]} 32. f4 {[%emt 0:00:31]} Qc6 {[%emt 0:00:09]} 33. Qc1 {[%emt 0:
00:14]} Qb7 {[%emt 0:00:16]} 34. Kh2 {[%emt 0:00:08]} Rbc8 {[%emt 0:00:05]} 35.
Qb2 {[%emt 0:00:11]} Qc7 {[%emt 0:00:11]} 36. Rc1 {[%emt 0:01:22]} Qb8 {
[%emt 0:00:11]} 37. Rf1 {[%emt 0:00:01]} Bc7 {[%emt 0:00:14]} 38. Qd2 {[%emt 0:
00:19]} Qb5 {[%emt 0:00:09]} 39. Rb3 {[%emt 0:00:16]} Qa6 {[%emt 0:00:05]} 40.
f5 {[%emt 0:00:15]} Nc5 {[%emt 0:00:06]} 41. fxg6 {[%emt 0:00:23]} hxg6 {
[%emt 0:00:02]} 42. Rbf3 {[%emt 0:00:10]} Nxe4 {[%emt 0:00:01]} 43. Qb2 {
[%emt 0:00:21]} Be5 {[%emt 0:00:37]} 44. Kg2 {[%emt 0:00:21]} Nxg3 {[%emt 0:00:
11]} 45. Nxg3 {[%emt 0:00:02]} Qc6 {[%emt 0:00:09]} 46. Kg1 {[%emt 0:00:25]}
Rb8 {[%emt 0:00:10]} 47. Qf2 {[%emt 0:00:05]} Qd5 {[%emt 0:00:10]} 48. h5 {
[%emt 0:00:16]} Ne6 {[%emt 0:00:04]} 49. Qd2 {[%emt 0:00:18]} d3 {[%emt 0:00:
13]} 50. Bxe5 {[%emt 0:00:18]} Qxe5 {[%emt 0:00:02]} 51. hxg6 {[%emt 0:00:00]}
fxg6 {[%emt 0:00:02]} 52. Re3 {[%emt 0:00:19]} Qxg5 {[%emt 0:00:04]} 53. Rfe1 {
[%emt 0:00:17]} Nf4 {[%emt 0:00:15]} 54. Kh2 {[%emt 0:00:05]} Qh4+ {[%emt 0:00:
14]} 55. Kg1 {[%emt 0:00:01]} Nh3+ {[%emt 0:00:26]} 56. Kg2 {[%emt 0:00:03]}
Nf4+ {[%emt 0:00:01]} 57. Kg1 {[%emt 0:00:00]} Rf8 {[%emt 0:00:01]} 58. Rf1 {
[%emt 0:00:33]} Nh3+ {[%emt 0:00:22]} 59. Kg2 {[%emt 0:00:01]} Nf4+ {[%emt 0:
00:01]} 60. Kg1 {[%emt 0:00:00]} Ne2+ {[%emt 0:00:06]} 61. Nxe2 {[%emt 0:00:18]
} Rxf1+ {[%emt 0:00:03]} 62. Kxf1 {[%emt 0:00:00]} Rf8+ {[%emt 0:00:22]} 63.
Kg2 {[%emt 0:00:21]} Rf2+ {[%emt 0:00:05]} 0-1

[Event "Opera Euro Rapid Prelims 2021"]
[Site "Online"]
[Date "2021.02.03"]
[Round "15.4"]
[White "Nakamura, Hikaru"]
[Black "Shankland, Sam"]
[Result "0-1"]
[ECO "B67"]
[WhiteElo "2736"]
[BlackElo "2691"]
[Annotator "RC"]
[PlyCount "115"]
[EventDate "2021.02.02"]
[EventType "tourn"]
[EventCountry "NET"]
[Tiebreak "Koya+Number of black wins+Number of wins"]
[SourceTitle "playchess.com"]
[Source "ChessBase"]
[SourceQuality "1"]
[TimeControl "900+10"]

1. e4 {[%emt 0:00:00]} c5 {[%emt 0:00:00]} 2. Nf3 {[%emt 0:00:00]} d6 {[%emt 0:
00:00]} 3. d4 {[%emt 0:00:00]} cxd4 {[%emt 0:00:00]} 4. Nxd4 {[%emt 0:00:00]}
Nf6 {[%emt 0:00:00]} 5. Nc3 {[%emt 0:00:01]} Nc6 {[%emt 0:00:00]} 6. Bg5 {
[%emt 0:00:01]} e6 {[%emt 0:00:00]} 7. Qd2 {[%emt 0:00:02]} a6 {[%emt 0:00:00]}
8. O-O-O {[%emt 0:00:01]} Bd7 {[%emt 0:00:00]} 9. f3 {[%emt 0:00:01]} Nxd4 {
[%emt 0:00:02]} 10. Qxd4 {[%emt 0:00:02]} Be7 {[%emt 0:00:01]} 11. h4 {[%emt 0:
00:10]} Qc7 {[%emt 0:00:09]} 12. Qd2 {[%emt 0:00:20]} b5 {[%emt 0:00:09]} 13.
Kb1 {[%emt 0:00:02]} b4 {[%emt 0:00:18]} 14. Ne2 {[%emt 0:00:06]} a5 {[%emt 0:
00:01]} 15. c4 {[%emt 0:00:17]} bxc3 {[%emt 0:00:09]} 16. Nxc3 {[%emt 0:00:06]}
Rb8 {[%emt 0:00:04]} 17. a4 {[%emt 0:00:18]} h6 {[%emt 0:00:29]} 18. Be3 {
[%emt 0:01:51]} O-O {[%emt 0:00:05]} 19. Nb5 {[%emt 0:00:09]} Qb7 {[%emt 0:00:
21]} 20. Bd3 {[%emt 0:01:34]} Rfc8 {[%emt 0:01:51]} 21. Rc1 {[%emt 0:00:15]} d5
{[%emt 0:00:20]} 22. e5 {[%emt 0:01:21]} Bb4 {[%emt 0:00:45]} 23. Qf2 {[%emt 0:
00:45]} Ne8 {[%emt 0:00:06]} 24. Ba7 {[%emt 0:00:24]} Rxc1+ {[%emt 0:01:30]}
25. Rxc1 {[%emt 0:00:00]} Rc8 {[%emt 0:00:00]} 26. Rxc8 {[%emt 0:00:40]} Qxc8 {
[%emt 0:00:08]} 27. h5 {[%emt 0:00:30]} Kf8 {[%emt 0:01:37]} 28. g4 {[%emt 0:
00:37]} Qc6 {[%emt 0:01:04]} 29. Bb6 {[%emt 0:00:24]} Bc8 {[%emt 0:01:41]} 30.
Na7 {[%emt 0:03:06]} Qxa4 {[%emt 0:00:03]} 31. Qe2 {[%emt 0:00:10]} Qd7 {
[%emt 0:00:20]} 32. Qc2 {[%emt 0:00:03]} Bb7 {[%emt 0:00:23]} 33. Bb5 {[%emt 0:
00:17]} Qe7 {[%emt 0:00:02]} 34. Qh7 {[%emt 0:02:18]} f6 {[%emt 0:00:07]} 35.
Qh8+ {[%emt 0:00:05]} Kf7 {[%emt 0:00:02]} 36. Bd3 {[%emt 0:00:00]} Qf8 {
[%emt 0:00:23]} 37. Qh7 {[%emt 0:01:02]} fxe5 {[%emt 0:02:50]} 38. Bd8 {
[%emt 0:00:25]} e4 {[%emt 0:00:02]} 39. fxe4 {[%emt 0:00:05]} Qd6 {[%emt 0:01:
02]} 40. Bh4 {[%emt 0:02:11]} dxe4 {[%emt 0:00:19]} 41. Bc2 {[%emt 0:00:02]}
Qa6 {[%emt 0:01:05]} 42. g5 {[%emt 0:01:28]} hxg5 {[%emt 0:00:25]} 43. Bxg5 {
[%emt 0:00:03]} Qxa7 {[%emt 0:00:59]} 44. Qg6+ {[%emt 0:00:06]} Kf8 {[%emt 0:
00:02]} 45. h6 {[%emt 0:00:05]} Qg1+ {[%emt 0:00:59]} 46. Ka2 {[%emt 0:00:01]}
Bd5+ {[%emt 0:00:00]} 47. b3 {[%emt 0:00:05]} Qf2 {[%emt 0:00:09]} 48. Kb1 {
[%emt 0:00:04]} Bc3 {[%emt 0:00:25]} 49. Bc1 {[%emt 0:00:08]} gxh6 {[%emt 0:00:
14]} 50. Qxh6+ {[%emt 0:00:03]} Kg8 {[%emt 0:00:14]} 51. Qg5+ {[%emt 0:00:07]}
Ng7 {[%emt 0:00:04]} 52. Qd8+ {[%emt 0:00:03]} Qf8 {[%emt 0:00:02]} 53. Qc7 {
[%emt 0:00:01]} Bf6 {[%emt 0:00:18]} 54. Qxa5 {[%emt 0:00:03]} Nf5 {[%emt 0:00:
08]} 55. Ba3 {[%emt 0:00:10]} Qc8 {[%emt 0:00:10]} 56. Bc5 {[%emt 0:00:03]} Nd4
{[%emt 0:00:21]} 57. Bd1 {[%emt 0:00:17]} Nxb3 {[%emt 0:00:24]} 58. Bxb3 {
[%emt 0:00:05]} 0-1